fUST/lending_fUST_20250701
["ID","MTS","AMOUNT","RATE_DAILY","PERIOD"]
[368748423,1751344249857,-460.0,0.00018711,2]
[368748424,1751344249867,-460.0,0.00018711,2]
[368748425,1751344249876,-460.0,0.00018711,2]
[368748426,1751344249887,-460.0,0.00018711,2]
[368748427,1751344249897,-460.0,0.00018711,2]
[368748428,1751344249906,-460.0,0.00018711,2]
[368748429,1751344249916,-460.0,0.00018711,2]
[368748430,1751344249925,-460.0,0.00018711,2]
[368748431,1751344249935,-524.46355067,0.00018711,2]
[368748432,1751344249948,-500.0,0.00018711,2]
[368748433,1751344249958,-460.0,0.00018711,2]
[368748434,1751344249968,-460.0,0.00018711,2]
[368748435,1751344249977,-229.3221117,0.00018711,2]
[368748436,1751344249988,-460.0,0.00018711,2]
[368748437,1751344249997,-460.0,0.00018711,2]
[368748438,1751344250007,-460.0,0.00018711,2]
[368748439,1751344250018,-463.93753095,0.00018711,2]
[368748440,1751344250029,-460.0,0.00018711,2]
[368748441,1751344250039,-460.0,0.00018711,2]
[368748442,1751344250049,-460.0,0.00018711,2]
[368748443,1751344250058,-460.0,0.00018711,2]
[368748444,1751344250068,-460.0,0.00018711,2]
[368748445,1751344250077,-460.0,0.00018711,2]
[368748446,1751344250087,-460.0,0.00018711,2]
[368748447,1751344250097,-460.0,0.00018711,2]
[368748448,1751344250106,-460.0,0.00018711,2]
[368748449,1751344250116,-460.0,0.00018711,2]
[368748450,1751344250126,-460.0,0.00018711,2]
[368748451,1751344250136,-460.0,0.00018711,2]
[368748452,1751344250147,-460.0,0.00018711,2]
[368748453,1751344250157,-465.45567467,0.00018713,2]
[368748454,1751344250167,-460.0,0.00018713,2]
[368748455,1751344250176,-460.0,0.00018713,2]
[368748456,1751344250186,-1000.0,0.00018721,2]
[368748457,1751344250195,-1000.0,0.00018721,2]
[368748458,1751344250205,-620.13758425,0.00018746,2]
[368748459,1751344250214,-2729.25412323,0.00018887,2]
[368748460,1751344250224,-485.33077097,0.000189,2]
[368748461,1751344250233,-460.0,0.0001898,2]
[368748462,1751344250243,-163.6,0.00018981,2]
[368748463,1751344250252,-460.0,0.00018981,2]
[368748464,1751344250262,-1987.86,0.00018981,2]
[368748465,1751344250271,-706.49,0.00018981,2]
[368748466,1751344250280,-460.0,0.00018981,2]
[368748467,1751344250290,-460.0,0.00018981,2]
[368748468,1751344250300,-575.97,0.00018981,2]
[368748469,1751344250309,-1636.02,0.00018981,2]
[368748470,1751344250319,-460.0,0.00018981,2]
[368748471,1751344250328,-1974.72,0.00018981,2]
[368748472,1751344250338,-460.0,0.00018981,2]
[368748473,1751344250347,-460.0,0.00018981,2]
[368748474,1751344250356,-460.0,0.00018981,2]
[368748475,1751344250366,-460.0,0.00018981,2]
[368748476,1751344250376,-460.0,0.00018981,2]
[368748477,1751344250386,-460.0,0.00018981,2]
[368748478,1751344250396,-1802.8,0.00018981,2]
[368748479,1751344250405,-460.0,0.00018981,2]
[368748480,1751344250416,-2358.11,0.00018981,2]
[368748481,1751344250425,-460.0,0.00018981,2]
[368748482,1751344250435,-304.53521825,0.00018981,2]
[368748483,1751344250445,-460.0,0.00018981,2]
[368748484,1751344250454,-460.0,0.00018981,2]
[368748485,1751344250464,-460.0,0.00018981,2]
[368748486,1751344250473,-548.05,0.00018981,2]
[368748487,1751344250484,-1525.05,0.00018981,2]
[368748488,1751344250494,-460.0,0.00018981,2]
[368748489,1751344250503,-743.78,0.00018981,2]
[368748490,1751344250513,-1345.14,0.00018981,2]
[368748491,1751344250523,-460.0,0.00018981,2]
[368748492,1751344250533,-460.0,0.00018981,2]
[368748493,1751344250543,-460.0,0.00018981,2]
[368748494,1751344250553,-564.06,0.00018981,2]
[368748495,1751344250562,-460.0,0.00018981,2]
[368748496,1751344250572,-460.0,0.00018981,2]
[368748497,1751344250583,-152.955021,0.00018981,2]
[368748498,1751344250592,-460.0,0.00018981,2]
[368748499,1751344250602,-460.0,0.00018981,2]
[368748500,1751344250612,-460.0,0.00018982,2]
[368748501,1751344250621,-275.34,0.00018982,2]
[368748502,1751344250631,-219.51,0.00018982,2]
[368748503,1751344250640,-460.0,0.00018982,2]
[368748504,1751344250650,-460.0,0.00018982,2]
[368748505,1751344250660,-460.0,0.00018982,2]
[368748506,1751344250670,-260.01,0.00018982,2]
[368748507,1751344250679,-460.0,0.00018982,2]
[368748508,1751344250688,-460.0,0.00018982,2]
[368748509,1751344250698,-460.0,0.00018982,2]
[368748510,1751344250707,-460.0,0.00018982,2]
[368748511,1751344250717,-460.0,0.00018982,2]
[368748512,1751344250727,-460.0,0.00018982,2]
[368748513,1751344250736,-391.56,0.00018982,2]
[368748514,1751344250746,-460.0,0.00018982,2]
[368748515,1751344250755,-460.0,0.00018982,2]
[368748516,1751344250765,-460.0,0.00018982,2]
[368748517,1751344250775,-465.96,0.00018982,2]
[368748518,1751344250785,-460.0,0.00018982,2]
[368748519,1751344250794,-673.34,0.00018982,2]
[368748520,1751344250804,-560.22592487,0.00018982,2]
[368748521,1751344250814,-460.0,0.00018982,2]
[368748522,1751344250823,-1372.82,0.00018982,2]
[368748523,1751344250833,-460.0,0.00018982,2]
[368748524,1751344250843,-460.0,0.00018982,2]
[368748525,1751344250854,-460.0,0.00018982,2]
[368748526,1751344250863,-542.51,0.00018982,2]
[368748527,1751344250873,-460.0,0.00018982,2]
[368748528,1751344250883,-460.0,0.00018982,2]
[368748529,1751344250978,-460.0,0.00018982,2]
[368748530,1751344250989,-460.0,0.00018982,2]
[368748531,1751344251000,-460.0,0.00018982,2]
[368748532,1751344251010,-460.0,0.00018982,2]
[368748533,1751344251020,-585.4,0.00018982,2]
[368748534,1751344251030,-500.0,0.00018982,2]
[368748535,1751344251040,-460.0,0.00018982,2]
[368748536,1751344251050,-151.0,0.00018982,2]
[368748537,1751344251061,-460.0,0.00018982,2]
[368748538,1751344251070,-460.0,0.00018982,2]
[368748539,1751344251080,-247.79,0.00018982,2]
[368748540,1751344251090,-151.0,0.00018982,2]
[368748541,1751344251100,-151.0,0.00018982,2]
[368748542,1751344251111,-460.0,0.00018982,2]
[368748543,1751344251120,-460.0,0.00018982,2]
[368748544,1751344251130,-460.0,0.00018982,2]
[368748545,1751344251140,-680.43,0.00018982,2]
[368748546,1751344251150,-151.0,0.00018982,2]
[368748547,1751344251159,-151.0,0.00018982,2]
[368748548,1751344251169,-460.0,0.00018982,2]
[368748549,1751344251178,-460.0,0.00018982,2]
[368748550,1751344251188,-460.0,0.00018982,2]
[368748551,1751344251197,-163.672659,0.00018982,2]
[368748552,1751344251207,-460.0,0.00018982,2]
[368748553,1751344251216,-460.0,0.00018982,2]
[368748554,1751344251226,-163.672659,0.00018982,2]
[368748555,1751344251235,-460.0,0.00018982,2]
[368748556,1751344251245,-151.0,0.00018982,2]
[368748557,1751344251255,-151.603124,0.00018982,2]
[368748558,1751344251264,-460.0,0.00018983,2]
[368748559,1751344251274,-460.0,0.00018983,2]
[368748560,1751344251284,-460.0,0.00018983,2]
[368748561,1751344251294,-460.0,0.00018983,2]
[368748562,1751344251303,-460.0,0.00018983,2]
[368748563,1751344251313,-460.0,0.00018983,2]
[368748564,1751344251322,-460.0,0.00018983,2]
[368748565,1751344251332,-460.0,0.00018983,2]
[368748566,1751344251342,-460.0,0.00018983,2]
[368748567,1751344251351,-460.0,0.00018983,2]
[368748568,1751344251361,-460.0,0.00018983,2]
[368748569,1751344251370,-460.0,0.00018983,2]
[368748570,1751344251380,-460.0,0.00018983,2]
[368748571,1751344251389,-460.0,0.00018983,2]
[368748572,1751344251398,-460.0,0.00018983,2]
[368748573,1751344251407,-463.33434395,0.00018983,2]
[368748574,1751344251417,-460.0,0.00018983,2]
[368748575,1751344251426,-460.0,0.00018983,2]
[368748576,1751344251436,-500.0,0.00018983,2]
[368748577,1751344251445,-460.0,0.00018983,2]
[368748578,1751344251454,-460.0,0.00018983,2]
[368748579,1751344251464,-460.0,0.00018983,2]
[368748580,1751344251474,-460.0,0.00018983,2]
[368748581,1751344251484,-460.0,0.00018983,2]
[368748582,1751344251494,-460.0,0.00018983,2]
[368748583,1751344251503,-460.0,0.00018983,2]
[368748584,1751344251513,-460.0,0.00018983,2]
[368748585,1751344251523,-460.0,0.00018983,2]
[368748586,1751344251532,-460.0,0.00018983,2]
[368748587,1751344251542,-460.0,0.00018983,2]
[368748588,1751344251551,-460.0,0.00018983,2]
[368748589,1751344251561,-460.0,0.00018983,2]
[368748590,1751344251571,-460.0,0.00018983,2]
[368748591,1751344251581,-460.0,0.00018983,2]
[368748592,1751344251590,-1267.78,0.00018983,2]
[368748593,1751344251600,-460.0,0.00018983,2]
[368748594,1751344251609,-460.0,0.00018983,2]
[368748595,1751344251618,-1284.89,0.00018983,2]
[368748596,1751344251628,-747.0,0.00018983,2]
[368748597,1751344251638,-460.0,0.00018983,2]
[368748598,1751344251648,-151.0,0.00018983,2]
[368748599,1751344251657,-460.0,0.00018983,2]
[368748600,1751344251667,-151.0,0.00018983,2]
[368748601,1751344251676,-460.0,0.00018983,2]
[368748602,1751344251685,-460.0,0.00018983,2]
[368748603,1751344251695,-1662.44,0.00018983,2]
[368748604,1751344251704,-460.0,0.00018983,2]
[368748605,1751344251714,-151.0,0.00018983,2]
[368748606,1751344251723,-460.0,0.00018983,2]
[368748607,1751344251733,-756.27,0.00018983,2]
[368748608,1751344251742,-460.0,0.00018983,2]
[368748609,1751344251751,-460.0,0.00018983,2]
[368748610,1751344251762,-1744.44,0.00018983,2]
[368748611,1751344251771,-460.0,0.00018983,2]
[368748612,1751344251781,-460.0,0.00018983,2]
[368748613,1751344251791,-460.0,0.00018983,2]
[368748614,1751344251800,-460.0,0.00018983,2]
[368748615,1751344251810,-460.0,0.00018983,2]
[368748616,1751344251819,-460.0,0.00018983,2]
[368748617,1751344251830,-2986.63,0.00018983,2]
[368748618,1751344251839,-460.0,0.00018983,2]
[368748619,1751344251849,-460.0,0.00018984,2]
[368748620,1751344251859,-470.32,0.00018984,2]
[368748621,1751344251869,-460.0,0.00018984,2]
[368748622,1751344251878,-460.0,0.00018984,2]
[368748623,1751344251888,-466.00231493,0.00018984,2]
[368748624,1751344251898,-460.0,0.00018984,2]
[368748625,1751344251909,-460.0,0.00018984,2]
[368748626,1751344251918,-460.0,0.00018984,2]
[368748627,1751344251928,-460.0,0.00018984,2]
[368748628,1751344251938,-460.0,0.00018984,2]
[368748629,1751344251950,-460.0,0.00018984,2]
[368748630,1751344251959,-587.4,0.00018984,2]
[368748631,1751344251968,-460.0,0.00018984,2]
[368748632,1751344251978,-460.0,0.00018984,2]
[368748633,1751344251987,-460.0,0.00018984,2]
[368748634,1751344251999,-460.0,0.00018984,2]
[368748635,1751344252009,-460.0,0.00018984,2]
[368748636,1751344252020,-460.0,0.00018984,2]
[368748637,1751344252030,-460.0,0.00018984,2]
[368748638,1751344252040,-460.0,0.00018984,2]
[368748639,1751344252052,-460.0,0.00018984,2]
[368748640,1751344252062,-460.0,0.00018984,2]
[368748641,1751344252073,-460.0,0.00018984,2]
[368748642,1751344252082,-509.95,0.00018984,2]
[368748643,1751344252091,-460.0,0.00018984,2]
[368748644,1751344252101,-3961.56,0.00018984,2]
[368748645,1751344252110,-460.0,0.00018984,2]
[368748646,1751344252120,-904.9,0.00018984,2]
[368748647,1751344252130,-460.0,0.00018984,2]
[368748648,1751344252139,-460.0,0.00018984,2]
[368748649,1751344252149,-460.0,0.00018984,2]
[368748651,1751344252158,-460.0,0.00018985,2]
[368748652,1751344252167,-460.0,0.00018985,2]
[368748653,1751344252178,-460.0,0.00018985,2]
[368748654,1751344252187,-460.0,0.00018985,2]
[368748655,1751344252197,-460.0,0.00018985,2]
[368748656,1751344252206,-460.0,0.00018985,2]
[368748657,1751344252216,-460.0,0.00018985,2]
[368748658,1751344252226,-460.0,0.00018985,2]
[368748659,1751344252236,-460.0,0.00018985,2]
[368748660,1751344252247,-460.0,0.00018985,2]
[368748661,1751344252256,-460.0,0.00018985,2]
[368748662,1751344252352,-460.0,0.00018985,2]
[368748663,1751344252371,-460.0,0.00018985,2]
[368748664,1751344252383,-460.0,0.00018985,2]
[368748665,1751344252392,-460.0,0.00018985,2]
[368748666,1751344252403,-460.0,0.00018985,2]
[368748667,1751344252413,-460.0,0.00018985,2]
[368748668,1751344252425,-460.0,0.00018985,2]
[368748669,1751344252434,-460.0,0.00018985,2]
[368748670,1751344252444,-460.0,0.00018985,2]
[368748671,1751344252454,-490.44846432,0.00018985,2]
[368748672,1751344252464,-460.0,0.00018985,2]
[368748673,1751344252474,-460.0,0.00018985,2]
[368748674,1751344252484,-534.3618884,0.00018985,2]
[368748675,1751344252495,-460.0,0.00018985,2]
[368748676,1751344252504,-151.0,0.00018985,2]
[368748677,1751344252515,-460.0,0.00018985,2]
[368748678,1751344252525,-460.0,0.00018985,2]
[368748679,1751344252535,-460.0,0.00018985,2]
[368748680,1751344252545,-151.0,0.00018985,2]
[368748681,1751344252556,-460.0,0.00018985,2]
[368748682,1751344252566,-460.0,0.00018985,2]
[368748683,1751344252575,-460.0,0.00018985,2]
[368748684,1751344252585,-151.0,0.00018985,2]
[368748685,1751344252596,-176.910877,0.00018985,2]
[368748686,1751344252607,-460.0,0.00018985,2]
[368748687,1751344252617,-222.430805,0.00018985,2]
[368748688,1751344252626,-460.0,0.00018985,2]
[368748689,1751344252637,-222.430805,0.00018985,2]
[368748690,1751344252647,-460.0,0.00018985,2]
[368748691,1751344252656,-460.0,0.00018985,2]
[368748692,1751344252666,-195.336888,0.00018985,2]
[368748693,1751344252675,-195.336888,0.00018985,2]
[368748694,1751344252685,-171.39148,0.00018985,2]
[368748695,1751344252694,-171.39148,0.00018985,2]
[368748696,1751344252704,-460.0,0.00018985,2]
[368748697,1751344252714,-460.0,0.00018985,2]
[368748698,1751344252724,-460.0,0.00018985,2]
[368748699,1751344252735,-460.0,0.00018987,2]
[368748700,1751344252747,-302.75782099,0.00019,2]
[368748701,1751344252757,-151.0,0.00019,2]
[368748702,1751344252768,-500.0,0.00019068,2]
[368748703,1751344252778,-620.13758425,0.00019088,2]
[368748704,1751344252789,-151.0,0.000191,2]
[368748705,1751344252800,-151.0,0.000191,2]
[368748706,1751344252809,-837.20943635,0.00019102,2]
[368748707,1751344252819,-160.0,0.00019102,2]
[368748708,1751344252828,-160.0,0.00019102,2]
[368748709,1751344252838,-160.0,0.00019102,2]
[368748710,1751344252851,-215.01728679,0.00019102,2]
[368748711,1751344252860,-160.0,0.00019102,2]
[368748712,1751344252874,-12571.40790328,0.00019102,2]
[368748713,1751344252884,-230.32585361,0.00019102,2]
[368748714,1751344252894,-213.87551669,0.00019102,2]
[368748715,1751344252903,-847.53272281,0.00019102,2]
[368748716,1751344252915,-160.0,0.00019112,2]
[368748717,1751344252926,-160.0,0.00019112,2]
[368748718,1751344252937,-160.0,0.00019114,2]
[368748719,1751344252948,-160.0,0.00019114,2]
[368748720,1751344252958,-2729.25412323,0.00019126,2]
[368748721,1751344252967,-498.34233224,0.00019136,2]
[368748722,1751344252977,-500.0,0.00019178,2]
[368748723,1751344252987,-327.50951355,0.00019178,2]
[368748724,1751344252999,-500.0,0.00019178,2]
[368748725,1751344253009,-500.0,0.00019178,2]
[368748726,1751344253019,-500.0,0.00019178,2]
[368748727,1751344253028,-199.18456187,0.00019178,2]
[368748728,1751344253039,-151.0,0.00019178,2]
[368748729,1751344253048,-538.238789,0.00019178,2]
[368748730,1751344253057,-302.75782099,0.0001919,2]
[368748731,1751344253067,-151.0,0.000192,2]
[368748732,1751344253077,-500.0,0.000192,2]
[368748733,1751344253087,-500.0,0.000192,2]
[368748734,1751344253211,-520.54352268,0.000192,2]
[368748735,1751344253221,-500.94565347,0.000192,2]
[368748736,1751344253230,-500.0,0.000192,2]
[368748737,1751344253240,-502.03785506,0.000192,2]
[368748738,1751344253251,-500.96056655,0.000192,2]
[368748739,1751344253260,-500.0,0.000192,2]
[368748740,1751344253270,-500.0,0.000192,2]
[368748741,1751344253280,-500.0,0.000192,2]
[368748742,1751344253290,-501.58004242,0.000192,2]
[368748743,1751344253301,-508.15711835,0.000192,2]
[368748744,1751344253311,-500.78906203,0.000192,2]
[368748745,1751344253321,-500.0,0.000192,2]
[368748746,1751344253331,-500.0,0.000192,2]
[368748747,1751344253341,-503.93424813,0.000192,2]
[368748748,1751344253351,-500.0,0.000192,2]
[368748749,1751344253360,-521.35283505,0.000192,2]
[368748750,1751344253370,-500.0,0.000192,2]
[368748751,1751344253380,-600.0,0.000192,2]
[368748752,1751344253391,-502.18668923,0.000192,2]
[368748753,1751344253401,-500.31514716,0.000192,2]
[368748754,1751344253410,-500.0,0.000192,2]
[368748755,1751344253420,-151.25262251,0.00019205,2]
[368748756,1751344253429,-366.3581911,0.00019233,2]
[368748757,1751344253440,-366.3581911,0.00019233,2]
[368748758,1751344253449,-151.0,0.00019246,2]
[368748759,1751344253459,-211.6853,0.00019246,2]
[368748760,1751344253468,-151.0,0.00019246,2]
[368748761,1751344253478,-151.0,0.00019246,2]
[368748762,1751344253488,-151.0,0.00019246,2]
[368748763,1751344253499,-206.329157,0.00019246,2]
[368748764,1751344253510,-151.0,0.00019246,2]
[368748765,1751344253520,-206.329157,0.00019246,2]
[368748766,1751344253530,-151.0,0.00019246,2]
[368748767,1751344253540,-151.0,0.00019246,2]
[368748768,1751344253549,-151.0,0.00019246,2]
[368748769,1751344253559,-460.0,0.00019254,2]
[368748770,1751344253569,-1987.86,0.00019255,2]
[368748771,1751344253579,-706.49,0.00019255,2]
[368748772,1751344253588,-362.79190775,0.00019255,2]
[368748773,1751344253598,-396.13750865,0.00019255,2]
[368748774,1751344253607,-1636.02,0.00019255,2]
[368748775,1751344253616,-460.0,0.00019255,2]
[368748776,1751344253626,-1974.72,0.00019255,2]
[368748777,1751344253635,-460.0,0.00019255,2]
[368748778,1751344253645,-460.0,0.00019255,2]
[368748779,1751344253654,-353.43971928,0.00019255,2]
[368748780,1751344253664,-199.25,0.00019255,2]
[368748781,1751344253673,-1802.8,0.00019255,2]
[368748782,1751344253683,-242.33,0.00019255,2]
[368748783,1751344253692,-2358.11,0.00019255,2]
[368748784,1751344253785,-460.0,0.00019255,2]
[368748785,1751344253796,-460.0,0.00019255,2]
[368748786,1751344253806,-460.0,0.00019255,2]
[368748787,1751344253816,-544.95,0.00019255,2]
[368748788,1751344253825,-1525.05,0.00019255,2]
[368748789,1751344253835,-743.78,0.00019255,2]
[368748790,1751344253845,-1345.14,0.00019255,2]
[368748791,1751344253855,-460.0,0.00019255,2]
[368748792,1751344253864,-460.0,0.00019255,2]
[368748793,1751344253874,-460.0,0.00019255,2]
[368748794,1751344253884,-460.0,0.00019255,2]
[368748795,1751344253894,-460.0,0.00019255,2]
[368748796,1751344253904,-460.0,0.00019255,2]
[368748797,1751344253914,-460.0,0.00019256,2]
[368748798,1751344253924,-460.0,0.00019256,2]
[368748799,1751344253935,-460.0,0.00019256,2]
[368748800,1751344253947,-460.0,0.00019256,2]
[368748801,1751344253957,-460.0,0.00019256,2]
[368748802,1751344253966,-460.0,0.00019256,2]
[368748803,1751344253977,-460.0,0.00019256,2]
[368748804,1751344253987,-506.72,0.00019256,2]
[368748805,1751344253998,-460.0,0.00019256,2]
[368748806,1751344254008,-460.0,0.00019256,2]
[368748807,1751344254018,-298.25772551,0.00019256,2]
[368748808,1751344254029,-460.0,0.00019256,2]
[368748809,1751344254039,-673.34,0.00019256,2]
[368748810,1751344254049,-460.0,0.00019256,2]
[368748811,1751344254058,-1372.82,0.00019256,2]
[368748812,1751344254068,-460.0,0.00019256,2]
[368748813,1751344254077,-489.42,0.00019256,2]
[368748814,1751344254086,-460.0,0.00019256,2]
[368748815,1751344254096,-460.0,0.00019256,2]
[368748816,1751344254105,-224.74,0.00019256,2]
[368748817,1751344254115,-460.0,0.00019256,2]
[368748818,1751344254125,-460.0,0.00019256,2]
[368748819,1751344254134,-460.0,0.00019256,2]
[368748820,1751344254144,-460.0,0.00019256,2]
[368748821,1751344254153,-460.0,0.00019256,2]
[368748822,1751344254163,-460.0,0.00019256,2]
[368748823,1751344254172,-460.0,0.00019256,2]
[368748824,1751344254181,-680.43,0.00019256,2]
[368748825,1751344254191,-460.0,0.00019256,2]
[368748826,1751344254200,-460.0,0.00019256,2]
[368748827,1751344254209,-460.0,0.00019256,2]
[368748828,1751344254219,-460.0,0.00019256,2]
[368748829,1751344254228,-460.0,0.00019256,2]
[368748830,1751344254238,-460.0,0.00019257,2]
[368748831,1751344254248,-460.0,0.00019257,2]
[368748832,1751344254257,-464.12463616,0.00019257,2]
[368748833,1751344254267,-464.36,0.00019257,2]
[368748834,1751344254277,-460.0,0.00019257,2]
[368748835,1751344254286,-464.52773921,0.00019257,2]
[368748836,1751344254297,-367.8,0.00019257,2]
[368748837,1751344254307,-460.0,0.00019257,2]
[368748838,1751344254524,-460.0,0.00019257,2]
[368748839,1751344254534,-460.0,0.00019257,2]
[368748840,1751344254544,-460.0,0.00019257,2]
[368748841,1751344254553,-460.0,0.00019257,2]
[368748842,1751344254563,-460.0,0.00019257,2]
[368748843,1751344254572,-460.0,0.00019257,2]
[368748844,1751344254582,-460.0,0.00019257,2]
[368748845,1751344254591,-460.0,0.00019257,2]
[368748846,1751344254602,-460.0,0.00019257,2]
[368748847,1751344254612,-500.0,0.00019257,2]
[368748848,1751344254621,-460.0,0.00019257,2]
[368748849,1751344254631,-460.0,0.00019257,2]
[368748850,1751344254640,-460.0,0.00019257,2]
[368748851,1751344254650,-460.0,0.00019257,2]
[368748852,1751344254660,-460.0,0.00019257,2]
[368748853,1751344254671,-460.0,0.00019257,2]
[368748854,1751344254680,-460.0,0.00019257,2]
[368748855,1751344254690,-460.0,0.00019257,2]
[368748856,1751344254699,-460.0,0.00019257,2]
[368748857,1751344254708,-460.0,0.00019257,2]
[368748858,1751344254718,-549.56,0.00019257,2]
[368748859,1751344254727,-460.0,0.00019257,2]
[368748860,1751344254737,-460.0,0.00019257,2]
[368748861,1751344254747,-460.0,0.00019257,2]
[368748862,1751344254757,-460.0,0.00019257,2]
[368748863,1751344254766,-1267.78,0.00019257,2]
[368748864,1751344254776,-460.0,0.00019257,2]
[368748865,1751344254786,-460.0,0.00019257,2]
[368748866,1751344254796,-1284.89,0.00019257,2]
[368748867,1751344254806,-747.0,0.00019257,2]
[368748868,1751344254816,-460.0,0.00019257,2]
[368748869,1751344254826,-460.0,0.00019257,2]
[368748870,1751344254836,-460.0,0.00019257,2]
[368748871,1751344254846,-464.16146576,0.00019257,2]
[368748872,1751344254856,-1662.44,0.00019257,2]
[368748873,1751344254865,-460.0,0.00019257,2]
[368748874,1751344254875,-460.0,0.00019257,2]
[368748875,1751344254885,-756.27,0.00019257,2]
[368748876,1751344254895,-460.0,0.00019257,2]
[368748877,1751344254905,-460.0,0.00019257,2]
[368748878,1751344254915,-1744.44,0.00019257,2]
[368748879,1751344254925,-460.0,0.00019257,2]
[368748880,1751344254935,-460.0,0.00019257,2]
[368748881,1751344254950,-460.0,0.00019257,2]
[368748882,1751344254960,-460.0,0.00019257,2]
[368748883,1751344254971,-391.59264355,0.00019257,2]
[368748884,1751344254981,-460.0,0.00019257,2]
[368748885,1751344254992,-2986.63,0.00019257,2]
[368748886,1751344255004,-460.0,0.00019257,2]
[368748887,1751344255014,-454.29,0.00019258,2]
[368748888,1751344255025,-460.0,0.00019258,2]
[368748889,1751344255036,-328.2,0.00019258,2]
[368748890,1751344255046,-460.0,0.00019258,2]
[368748891,1751344255056,-151.910714,0.00019258,2]
[368748892,1751344255066,-151.0,0.00019258,2]
[368748893,1751344255076,-151.0,0.00019258,2]
[368748894,1751344255086,-151.0,0.00019258,2]
[368748895,1751344255097,-151.0,0.00019258,2]
[368748896,1751344255186,-151.0,0.00019258,2]
[368748897,1751344255197,-460.0,0.00019258,2]
[368748898,1751344255208,-466.17875467,0.00019258,2]
[368748899,1751344255220,-460.0,0.00019258,2]
[368748900,1751344255231,-460.0,0.00019258,2]
[368748901,1751344255241,-370.006665,0.00019258,2]
[368748902,1751344255253,-370.006665,0.00019258,2]
[368748903,1751344255262,-460.0,0.00019258,2]
[368748904,1751344255272,-218.78,0.00019258,2]
[368748905,1751344255282,-460.0,0.00019258,2]
[368748906,1751344255291,-219.24276478,0.00019258,2]
[368748907,1751344255301,-460.0,0.00019258,2]
[368748908,1751344255311,-460.0,0.00019258,2]
[368748909,1751344255320,-460.0,0.00019258,2]
[368748910,1751344255334,-460.0,0.00019258,2]
[368748911,1751344255344,-460.0,0.00019258,2]
[368748912,1751344255353,-460.0,0.00019258,2]
[368748913,1751344255363,-509.95,0.00019258,2]
[368748914,1751344255372,-460.0,0.00019258,2]
[368748915,1751344255382,-3961.56,0.00019258,2]
[368748916,1751344255391,-460.0,0.00019258,2]
[368748917,1751344255400,-257.5869,0.00019258,2]
[368748918,1751344255410,-151.0,0.00019258,2]
[368748919,1751344255420,-151.0,0.00019258,2]
[368748920,1751344255430,-904.9,0.00019258,2]
[368748921,1751344255440,-151.0,0.00019258,2]
[368748922,1751344255451,-502.16447343,0.00019258,2]
[368748923,1751344255460,-163.672659,0.00019258,2]